Cogmind - Beta 13 @@@ ROGUE MODE // 2024.04.14 @ 23:13:49 Player: Nebula avali Result: Destroyed by D-53 Grenadier with Mini Grenade Launcher Performance ------------- Evolutions (0) 0 Regions Visited (4) 800 Robots Destroyed (21) 105 Value Destroyed (552) 552 Prototype IDs (2) 40 Alien Tech Used (0) 0 Bonus (300) 300 TOTAL SCORE: 1797 Bonus ------- Aligned with FarCom 300 Cogmind --------- Core Integrity 0/250 Matter 300/300 Energy 250/250 System Corruption 0% Temperature Cool (0) Movement Treading (320) Ox2 Location -9/Mines Parts ------- > --- POWER (1) -------- Ion Engine > --- PROPULSION (2) --- Improved Treads > --- UTILITY (2) ------ High-capacity Storage Unit Modified TNC > --- WEAPON (2) ------- Heavy Hammer Heavy Hammer > --- INVENTORY (20) --- Ion Engine Reinforced Deuterium Engine Fission Core Light Fission Core Improved Treads Improved Treads Wheel Wheel Wheel Wheel Compact Wheel Weapon Shielding Grenade Launcher Grenade Launcher Heavy Hammer Peak State ------------ > --- POWER ------------ Ion Engine > --- PROPULSION ------- Improved Treads Improved Treads > --- UTILITY ---------- Large Storage Unit Experimental Sensor Array > --- WEAPON ----------- Heavy Hammer Heavy Hammer > --- INVENTORY -------- Ion Engine Light Ion Engine Improved Treads Improved Treads Wheel Wheel Wheel Wheel Compact Wheel Weapon Shielding Light Armor Plating Grenade Launcher Grenade Launcher Heavy Hammer [Rating: 20] Favorites ----------- Power Ion Engine Engine Ion Engine Propulsion Improved Treads Treads Improved Treads Leg Aluminum Leg Utility Large Storage Unit Device Experimental Sensor Array Storage Large Storage Unit Processor Modified TNC Protection Weapon Shielding Weapon Heavy Hammer Energy Gun Medium Laser Ballistic Gun Light Assault Rifle Impact Weapon Heavy Hammer Build | -11 -10 -10 -10 -9 ------- Run | Yrd Mat Min Exi Min Slots Evolved . | . . . . . Power . | . . . . . Propulsion . | . . . . . Utility . | . . . . . Weapon . | . . . . . Parts Attached 20 | 2 13 1 3 1 Power 2 | . 2 . . . Engine 2 | . 2 . . . Core . | . . . . . Reactor . | . . . . . Propulsion 4 | 2 2 . . . Treads 4 | 2 2 . . . Leg . | . . . . . Wheel . | . . . . . Hover . | . . . . . Flight . | . . . . . Utility 9 | . 4 1 3 1 Device 1 | . . . 1 . Storage 2 | . 1 . . 1 Processor 2 | . . 1 1 . Hackware . | . . . . . Protection 4 | . 3 . 1 . Artifact . | . . . . . Weapon 5 | . 5 . . . Energy Gun . | . . . . . Energy Cannon . | . . . . . Ballistic Gun 2 | . 2 . . . Ballistic Cannon . | . . . . . Launcher . | . . . . . Special Weapon . | . . . . . Impact Weapon 3 | . 3 . . . Slashing Weapon . | . . . . . Piercing Weapon . | . . . . . Special Melee Weapon . | . . . . . Unidentified Prototypes 2 | . . . 2 . Parts Lost 2 | . 1 . . 1 Power 1 | . 1 . . . Propulsion 1 | . . . . 1 Utility . | . . . . . Weapon . | . . . . . Highest Loss Streak 1 | . 1 . . 1 To Critical Strikes . | . . . . . Average Slot Usage (%) 98 | . 97 100 99 98 Engine 13 | . 12 14 14 14 Treads 27 | . 28 28 28 26 Storage 14 | . 14 14 14 14 Processor 2 | . . . 7 14 Protection 11 | . 13 13 6 . Energy Gun 3 | . 7 . . . Ballistic Gun 5 | . 11 . . . Impact Weapon 18 | . 9 28 28 28 Naked Turns . | . . . . . Heaviest Build 51 | 12 32 32 32 51 Greatest Support 46 | 40 46 46 46 46 Greatest Overweight (x) 2 | . . . . 2 Average Overweight (x) . | . . . . . Largest Inventory Capacity 20 | 8 15 15 15 20 Average Capacity 14 | 8 14 15 15 17 Most Carried 15 | 8 15 15 15 15 Average Carried 13 | 5 12 14 14 15 Final Capacity 20 | 8 15 15 15 20 Final Carried 15 | 6 15 15 15 15 Class Distribution -------------------- 100% | Mutant Dominant Class ---------------- Mutant | -10/Materials Mutant | -10/Mines Mutant | -10/Exiles Mutant | -9/Mines Resources | -11 -10 -10 -10 -9 ----------- Run | Yrd Mat Min Exi Min Matter Collected 435 | 220 165 . . 50 Remotely . | . . . . . Salvage Created 692 | . 614 . . 78 Parts 27 | . 23 . . 4 Haulers Intercepted 1 | . 1 . . . Recyclers Shooed 1 | . 1 . . . Parts Field Recycled . | . . . . . Retrieved Matter . | . . . . . Parts Self-Destructed . | . . . . . Prevented . | . . . . . Kills | -11 -10 -10 -10 -9 ------- Run | Yrd Mat Min Exi Min Combat Hostiles Destroyed 16 | . 14 . . 2 Melee 4 | . 2 . . 2 Guns 5 | . 5 . . . AOE 1 | . 1 . . . Classes Destroyed 7 | . 6 . . 1 Worker 1 | . 1 . . . Hauler 1 | . 1 . . . Recycler 1 | . 1 . . . Watcher 2 | . 2 . . . Swarmer 3 | . 3 . . . Grunt 12 | . 11 . . 1 Duelist 1 | . . . . 1 Best Kill Streak 5 | . 5 . . 2 Combat Bots Only 5 | . 5 . . 2 Max Kills in Single Turn 1 | . 1 . . 1 Gunslinging . | . . . . . Exploded 1 | . 1 . . . Melee 1 | . 1 . . 1 Uniques/NPCs Destroyed . | . . . . . Combat | -11 -10 -10 -10 -9 -------- Run | Yrd Mat Min Exi Min Hostile Shots Fired 94 | . 87 . . 7 Missed 15 | . 15 . . . Damage Taken 1012 | . 809 . . 203 Core 250 | . 173 . . 77 Absorbed by Shields . | . . . . . Redirected to Shielding 32 | . 32 . . . Regen/Repaired (Parts) 32 | . 32 . . . Core Remaining (%) 100 | 100 . . . . Volleys Fired 36 | . 36 . . . Largest 2 | . 2 . . . Hottest 90 | . 90 . . . Shots Fired 63 | . 63 . . . Gun 63 | . 63 . . . Cannon . | . . . . . Launcher . | . . . . . Special . | . . . . . Kinetic 40 | . 40 . . . Thermal 13 | . 13 . . . Explosive . | . . . . . Electromagnetic 10 | . 10 . . . Robot Hit Streak 7 | . 7 . . . Robot Miss Streak 5 | . 5 . . . Penetration Max . | . . . . . Secondary Targets . | . . . . . Shots Hit Robots 59 | . 57 . . 2 Core Hits 21 | . 20 . . 1 Critical Kills 1 | . 1 . . . Critical Parts Destroyed 2 | . 2 . . . Critical Strikes 4 | . 4 . . . Burn 1 | . 1 . . . Smash 3 | . 3 . . . Melee Attacks 38 | . 35 1 . 2 Impact 38 | . 35 1 . 2 Slashing . | . . . . . Piercing . | . . . . . Sneak Attacks 2 | . 1 . . 1 Combat Hostiles 1 | . . . . 1 Follow-up Attacks 1 | . 1 . . . Damage Inflicted 1540 | . 1379 . . 161 Guns 354 | . 354 . . . Cannons . | . . . . . Explosions 62 | . 62 . . . Melee 1124 | . 963 . . 161 Ramming . | . . . . . Kinetic 176 | . 176 . . . Thermal 171 | . 171 . . . Explosive . | . . . . . Electromagnetic 69 | . 69 . . . Impact 1124 | . 963 . . 161 Slashing . | . . . . . Piercing . | . . . . . Highest Corruption . | . . . . . Average Corruption . | . . . . . Corruption Purged . | . . . . . Corruption Blocked . | . . . . . Overload Shots . | . . . . . Overflow Damage 231 | . 185 . . 46 Projectiles . | . . . . . Explosions . | . . . . . Melee 231 | . 185 . . 46 Knockbacks 4 | . 4 . . . Impact 4 | . 4 . . . Kinetic . | . . . . . Secondary . | . . . . . Self-Inflicted Damage 38 | . 38 . . . Shots 1 | . 1 . . . Rammed . | . . . . . Targets Rammed . | . . . . . Kicked . | . . . . . Crushed . | . . . . . Highest Temperature 494 | . 494 . . . Average Temperature 197 | . 197 . . . Received Heat Transfer 414 | . 396 . . 18 Effects 2 | . 2 . . . Shutdowns 2 | . 2 . . . Siege Activations . | . . . . . Robots Corrupted . | . . . . . Combat Hostiles . | . . . . . Parts Fried 11 | . 9 . . 2 Impact Corruptions 11 | . 9 . . 2 Robots Melted . | . . . . . Combat Hostiles . | . . . . . Parts Melted 1 | . 1 . . . Heat Transferred 507 | . 507 . . . Parts Sabotaged . | . . . . . Parts Stolen . | . . . . . Parts Stripped . | . . . . . Power Chain Reactions 1 | . 1 . . . Alert | -11 -10 -10 -10 -9 ------- Run | Yrd Mat Min Exi Min Peak Influence 187 | . 187 39 . 50 Initial 39 | . . 39 . . Average 52 | . 60 39 . 48 Maximum Alert Level . | . . . . . Low Security (%) 100 | 100 100 100 . 100 Level 1 . | . . . . . Level 2 . | . . . . . Level 3 . | . . . . . Level 4 . | . . . . . Level 5 . | . . . . . High Security . | . . . . . Max Security . | . . . . . Squads Dispatched 2 | . 2 . . . Investigation 1 | . 1 . . . Extermination . | . . . . . Reinforcement 1 | . 1 . . . Assault . | . . . . . Garrison . | . . . . . Intercept . | . . . . . Searches Triggered . | . . . . . Construction Impeded . | . . . . . Haulers Reinforced . | . . . . . Active Scanning Responses . | . . . . . Cargo Convoy Interrupts . | . . . . . Stealth | -11 -10 -10 -10 -9 --------- Run | Yrd Mat Min Exi Min Distress Signals 1 | . 1 . . . Communications Jammed . | . . . . . Distress Signals . | . . . . . Times Spotted 23 | . 20 . . 3 Peak Tracking Total 5 | . 5 . . 2 Tactical Retreats . | . . . . . Traps | -11 -10 -10 -10 -9 ------- Run | Yrd Mat Min Exi Min Traps Triggered . | . . . . . Indirectly . | . . . . . Trap Hack Attempts . | . . . . . Triggered . | . . . . . Disarmed . | . . . . . Reprogrammed . | . . . . . Reused . | . . . . . Traps Extracted . | . . . . . Installed . | . . . . . Triggered . | . . . . . Machines | -11 -10 -10 -10 -9 ---------- Run | Yrd Mat Min Exi Min Machines Disabled . | . . . . . Max in Single Turn . | . . . . . Machines Repaired . | . . . . . Machines Dismantled . | . . . . . Machines Sabotaged . | . . . . . Overloaded Fab Kills . | . . . . . Hacking | -11 -10 -10 -10 -9 --------- Run | Yrd Mat Min Exi Min Machines Accessed 5 | . 5 . . . Terminals 4 | . 4 . . . Fabricators . | . . . . . Repair Stations 1 | . 1 . . . Recycling Units . | . . . . . Scanalyzers . | . . . . . Garrison Access . | . . . . . Total Hacks 17 | . 17 . . . Successful 6 | . 6 . . . Failed 11 | . 11 . . . Catastrophic . | . . . . . Database Lockouts . | . . . . . Manual 13 | . 12 . 1 . Terminals 12 | . 12 . . . Fabricators . | . . . . . Repair Stations 5 | . 5 . . . Recycling Units . | . . . . . Scanalyzers . | . . . . . Garrison Access . | . . . . . Terminal Hacks 1 | . 1 . . . Branch Access Points 1 | . 1 . . . Fabricator Hacks . | . . . . . Repair Station Hacks 2 | . 2 . . . Scan Component 1 | . 1 . . . Repair 1 | . 1 . . . Recycling Unit Hacks . | . . . . . Scanalyzer . | . . . . . Garrison Access Hacks . | . . . . . Unauthorized Hacks 3 | . 3 . . . Terminals 3 | . 3 . . . Botnet 3 | . 3 . . . Fabricators . | . . . . . Repair Stations . | . . . . . Recycling Units . | . . . . . Scanalyzers . | . . . . . Garrison Access . | . . . . . Data Cores Recovered . | . . . . . Used . | . . . . . Hacking Detections 5 | . 5 . . . Full Trace Events 1 | . 1 . . . Feedback Events . | . . . . . Feedback Blocked . | . . . . . Robot Schematics Acquired . | . . . . . Robots Built . | . . . . . Authchips . | . . . . . Time . | . . . . . Total Robot Build Rating . | . . . . . Part Schematics Acquired . | . . . . . Parts Built . | . . . . . Authchips . | . . . . . Time . | . . . . . Total Part Build Rating . | . . . . . Parts Repaired 1 | . 1 . . . Time 26 | . 26 . . . Parts Recycled . | . . . . . Recycled Matter . | . . . . . Retrieved Matter . | . . . . . Retrieved Components . | . . . . . Parts Scanalyzed . | . . . . . Part Schematics Acquired . | . . . . . Parts Damaged . | . . . . . Bothacking | -11 -10 -10 -10 -9 ------------ Run | Yrd Mat Min Exi Min Used RIF Installer . | . . . . . Robots Hacked . | . . . . . Non-combat . | . . . . . Combat . | . . . . . Robot Hacks Applied . | . . . . . Relay Couplers Released . | . . . . . Fabnet Peak Effective % . | . . . . . Robots Rewired . | . . . . . Allies Hacked . | . . . . . Hacks Repelled . | . . . . . Allies | -11 -10 -10 -10 -9 -------- Run | Yrd Mat Min Exi Min Total Allies . | . . . . . Largest Group . | . . . . . Highest-Rated Group . | . . . . . Highest-Rated Ally . | . . . . . Total Orders . | . . . . . Ally Attacks . | . . . . . Total Damage . | . . . . . Kills . | . . . . . Allies Corrupted . | . . . . . Allies Melted . | . . . . . Intel | -11 -10 -10 -10 -9 ------- Run | Yrd Mat Min Exi Min Robot Analysis Total . | . . . . . Derelict Logs Recovered . | . . . . . Drone Launches . | . . . . . Drone Recoveries . | . . . . . Exploration | -11 -10 -10 -10 -9 ------------- Run | Yrd Mat Min Exi Min Turns Passed 1859 | 36 946 388 373 116 Spaces Moved 936 | 20 421 209 228 58 Core . | . . . . . Treads 935 | 19 421 209 228 58 Legs 1 | 1 . . . . Wheels . | . . . . . Hover . | . . . . . Flight . | . . . . . Fastest Speed 120 | 120 160 160 160 160 Average Speed 161 | 158 160 160 160 188 Slowest Speed 320 | 160 160 160 160 320 Overloaded Moves . | . . . . . Propulsion Burnouts . | . . . . . Robots Hopped . | . . . . . Cave-ins Triggered . | . . . . . Exploration Rate (%) 40 | 3 68 51 62 17 Regions Visited 4 Branch Regions 3 Pre-discovered Areas 1 | . . 1 . . Known Exits Taken 2 | . 1 1 . . Unknown Exits Taken 2 | 1 . . 1 . Scrap Searched 1 | . . . . 1 Spaces Dug 6 | . 6 . . . Terrain Destroyed 12 | . 12 . . . Melee 6 | . 6 . . . Projectile . | . . . . . AOE 6 | . 6 . . . Terrain Rammed . | . . . . . Walls Destroyed . | . . . . . Machines Disabled . | . . . . . Actions | -11 -10 -10 -10 -9 --------- Run | Yrd Mat Min Exi Min Total 1172 | 27 581 262 240 62 Wait 98 | . 52 46 . . Move 932 | 19 420 208 227 58 Hop . | . . . . . Pick Up 21 | 2 12 3 4 . Fast Attach 8 | . 7 . 1 . Attach 7 | 2 2 1 2 . Detach 7 | 2 3 . 2 . Swap 5 | . 4 . . 1 Drop 21 | 2 11 3 4 1 Fire 36 | . 36 . . . Melee 37 | . 34 1 . 2 Ram . | . . . . . Kick . | . . . . . Crush . | . . . . . Escape Stasis . | . . . . . Rewire . | . . . . . Trap . | . . . . . Miscellaneous . | . . . . . Route ------- -11/Scrapyard -10/Materials (discovered 4 exits: [*Mat x2] / *Min x2) -10/Mines -10/Exiles -9/Mines (discovered 1 exit: [*Mat]) History --------- Turn | Location | Event 1 | -11/Scrapyard | Discovered new exit (range 1) 37 | -11/Scrapyard | Entered Materials 191 | -10/Materials | Discovered new exit (range 8) 319 | -10/Materials | Build established: Mutant 366 | -10/Materials | Discovered new exit (range 16) 717 | -10/Materials | Core integrity fell below 50% 867 | -10/Materials | Identified exit to Mines 928 | -10/Materials | Repaired Weapon Shielding 940 | -10/Materials | Discovered new exit (range 10) 983 | -10/Materials | Entered Mines 1069 | -10/Mines | Learned location of Storage (-9) 1169 | -10/Mines | Found a damaged Exp. Sensor Array with a note attached 1173 | -10/Mines | Found Prototype Device 1325 | -10/Mines | YI-UF0 nonchalantly dropped a Grenade Launcher on the ground 1357 | -10/Mines | Discovered new exit (range 2) 1365 | -10/Mines | Identified exit to Exiles 1371 | -10/Mines | Entered Exiles 1393 | -10/Exiles | Identified Exp. Sensor Array 1417 | -10/Exiles | Met 8R-AWN 1443 | -10/Exiles | Met EX-HEX 1496 | -10/Exiles | Met EX-BIN 1517 | -10/Exiles | Aligned with FarCom system 1518 | -10/Exiles | Given EX-Vault access code 1563 | -10/Exiles | Opened EX-Vault 1573 | -10/Exiles | Found Prototype Processor 1573 | -10/Exiles | Identified Modified TNC 1613 | -10/Exiles | Warned to stay clear of 0b10 Research branches 1659 | -10/Exiles | Met EX-DEC 1730 | -10/Exiles | Discovered new exit (range 10) 1744 | -10/Exiles | Left Exiles lab with Modified TNC 1744 | -10/Exiles | Entered Mines 1795 | -9/Mines | Discovered new exit (range 8) 1818 | -9/Mines | Assembled infested the area 1857 | -9/Mines | Core integrity fell below 20% 1860 | -9/Mines | Destroyed by D-53 Grenadier with Mini Grenade Launcher Last Messages --------------- 01744_ L-31 Rogue system corrupted by crushing effect. 01744_ Core Shielding fried. 01744_ Imp. Aluminum Leg fried. 01744_ L-31 Rogue destroyed. 01747_ Acquired 40 matter. 01749_ G-34 Mercenary destroyed. 01795_ EXIT=FOUND 01808_ Searching scrap... 01808_ Found Hcp. Storage Unit. 01808_ Found Imp. Light Cannon. 01808_ Found Authchip [Weapon]. 01808_ Found 21 Matter. 01811_ Dropped Lrg. Storage Unit. 01812_ Acquired 10 matter. 01818_ ALERT: Infestation in the mines, dispatching Demolisher response squad. 01856_ C-30 ARC bursts open, deploying its payload. 01856_ D-53 Grenadier unfolds itself. 01856_ Imp. Treads destroyed. 01857_ The unstable cave ceiling collapses. Map ----- +----------------------------------------------------+ | ????????????????????????????????? | | ????????????????????????????????? | | ????????????????????????????????? | | ????????????????????????????????? | | ????????????????????????????????? | | ????????????????????????????????? | | ????????????????????????????????? | | ????????????????????????????????? | | ????????????????????????????????? | | ????????????????????????????????? | | ????????????????????????????????? | | ????????????????????????????????? | | ????????????????????????????????? | | ????????????????????????????????? | | ????????????????????????????????? | | ?????????????????????????????#??? | | ???????????????????????????? ##?? | | ???????????????????????????? ##? | | ???????????????????????????? ?? | | ??????????????????????????? ?? | | ?????????????????# #######? ??? | | ?????????????????# ## ???? | | ?????????????????# ### #???? | | ????????????????????# #???? | | ????????????????????# ##??? | | ????????????????????# @ #??? | | ????????????????????## #??? | | ????????????????????# ##??? | | ????????????????????## ##???? | | ?????????????????# ### d ###????? | | ?????????????????# r d##?????? | | ?????????????????###### ##?##?? | | ?????????????????######% ## ##? | | ?????????????????# #? | | ?????????????????# ] #? | | ??????????????#### ### <%! ##? | | ????????????### #### !####?? | | ???????????## #?#####????? | | ??????????## #??????????? | | ??????????# ##??????????? | | ?????????## ##???????????? | | ????????## ######????????????? | | ????????# ##?????????????????? | | ???????## #??????????????????? | | ######## ##?????????????????? | | ##????????????????? | | ##???????????????? | | ####### #???????????????? | | ????????## #???????????????? | | ?????????## #???????????????? | +----------------------------------------------------+ Best States ------------- Heat Dissipation 25 Energy Generation 10 Energy Capacity 250 Matter Stores 300 Matter Capacity 300 Sight Range 16 Terrain Scan Density 10 Armor Coverage 150 Weapon Shielding 33 Evasion (%) 40 Recoil Reduction 2 Item Schematics ----------------- None Robot Schematics ------------------ None Fabricated ------------ Nothing Alien Tech Used ----------------- None Achievements -------------- None Challenges ------------ None Game ------ Seed SpikedZhirovSubcomponent Manual? 0 Play Time 00:14:27 Cumulative 32.4 hours Start 2024.04.14 @ 22:38:34 End 2024.04.14 @ 23:13:49 Sessions 2 Manual Loads 0 Difficulty Rogue Special Mode None Game No. 49 Rogue 48 Adventurer 1 Explorer 0 Win Type - Total 1 Types 1/0/0/0/0/0/0/0/0 Lore% 23 Gallery% 43 Achievement% 35 Wizard Run 0 Options --------- Layout 0 ASCII 0 Keyboard 0 Movement Numpad Keybinds 0 Fullscreen 1 Font 18/SmallcapsGlow Map View 76x50 Zoom Use 0% Tactical HUD 1 Map Filters NONE Filters NONE Steam 1 RUN: 64991f1d-3cf0-44a6-a6ff-20c4a1bf86e7